bitfinex-derivatives/quotes_ETHF0:USTF0_20241004
["timestamp","ask_amount","ask_price","bid_price","bid_amount"]
[1728000002183,0.397,2351.1,2350.7,3.02810141]
[1728000002487,0.397,2351.1,2350.7,1.5300255]
[1728000004688,1.627,2351.1,2350.7,1.5300255]
[1728000005188,3.2078,2350.8,2350.7,1.5300255]
[1728000005385,1.23,2351.0,2350.7,1.5300255]
[1728000005585,0.7985,2350.9,2350.7,1.5300255]
[1728000006088,0.3943,2350.8,2350.7,1.5300255]
[1728000006985,0.3943,2350.8,2350.7,0.4145]
[1728000007292,3.6021,2350.8,2350.6,0.8308]
[1728000007479,4.8321,2350.8,2350.6,0.8308]
[1728000008081,1.6243,2350.8,2350.6,0.8308]
[1728000008483,0.3943,2350.8,2350.6,0.8308]
[1728000008887,3.6021,2350.8,2350.6,0.8308]
[1728000009393,3.6021,2350.8,2350.6,0.4225]
[1728000010095,0.3943,2350.8,2350.5,1.5335255]
[1728000011887,0.3943,2350.8,2350.5,0.418]
[1728000012090,4.4378,2350.7,2350.3,0.099]
[1728000012289,4.29522781,2350.8,2350.5,1.23]
[1728000012588,7.10872781,2351.0,2350.6,2.0484]
[1728000012790,3.2078,2351.0,2350.8,1.23]
[1728000012989,8.02192781,2351.3,2350.8,1.23]
[1728000012990,3.90092781,2351.3,2350.8,1.23]
[1728000013195,0.7942,2351.4,2351.2,1.23]
[1728000013490,0.3942,2351.5,2351.2,1.23]
[1728000013697,0.3942,2351.5,2351.4,1.23]
[1728000014088,3.602,2351.5,2351.3,2.0707]
[1728000014288,3.602,2351.5,2351.3,0.4125]
[1728000014494,1.6288,2351.4,2351.1,0.4009]
[1728000014792,4.4378,2351.2,2350.8,0.099]
[1728000015099,4.4378,2351.2,2350.7,1.2372]
[1728000015397,0.4002,2351.1,2350.7,1.2372]
[1728000015594,0.3988,2351.0,2350.7,1.2372]
[1728000015794,0.413,2350.9,2350.7,1.2372]
[1728000016093,1.186,2350.8,2350.7,1.2372]
[1728000018105,1.186,2350.8,2350.7,2.4672]
[1728000018898,8.6474,2350.8,2350.5,1.1155255]
[1728000019091,0.3922,2350.7,2350.4,1.23]
[1728000019298,3.2078,2350.5,2350.4,1.23]
[1728000021395,3.2078,2350.5,2350.3,1.1155255]
[1728000021598,3.2078,2350.5,2350.2,2.3455255]
[1728000021802,3.6231,2350.5,2350.2,1.23]
[1728000023325,4.8531,2350.5,2350.1,1.2529]
[1728000023599,1.23,2350.4,2349.9,3.2685255]
[1728000023797,3.2078,2350.2,2349.9,2.054]
[1728000023993,2.0504,2350.1,2349.7,1.2145255]
[1728000024196,3.2078,2349.8,2349.5,1.9168255]
[1728000024406,1.186,2350.1,2349.7,1.23]
[1728000024607,1.186,2350.1,2350.0,1.23]
[1728000025106,0.3933,2350.3,2350.0,1.23]
[1728000025305,4.0282,2350.5,2350.2,1.23]
[1728000025306,1.186,2350.4,2350.2,1.23]
[1728000025501,1.186,2350.4,2349.9,0.8013]
[1728000025502,1.186,2350.4,2350.3,3.4645]
[1728000028108,3.2078,2350.5,2350.3,3.4645]
[1728000028310,3.2078,2350.5,2350.4,3.0905]
[1728000028505,2.141,2351.1,2350.4,7.3449]
[1728000028809,1.186,2351.2,2351.0,2.66]
[1728000029007,1.186,2351.2,2351.1,0.8415]
[1728000029301,1.186,2351.2,2351.1,1.2397]
[1728000029507,3.2078,2351.5,2351.1,1.2397]
[1728000029704,3.2078,2351.8,2351.4,1.474]
[1728000029906,4.3938,2351.8,2351.7,2.66]
[1728000030103,4.3938,2351.8,2351.6,2.66]
[1728000030299,4.3938,2351.8,2351.4,2.66]
[1728000030598,4.271,2351.5,2351.2,0.42533]
[1728000030804,4.27101,2351.5,2351.1,1.26684]
[1728000031205,0.3938,2351.4,2351.2,2.66]
[1728000031405,0.8191,2351.4,2351.3,0.42531]
[1728000031708,0.3938,2351.4,2351.2,2.66]
[1728000032010,0.42531,2351.3,2351.2,2.66]
[1728000032417,0.42531,2351.3,2351.1,0.8415]
[1728000032710,0.42531,2351.3,2351.2,0.42533]
[1728000033105,0.42533,2351.2,2351.1,1.26684]
[1728000033710,0.42532,2351.3,2351.2,0.42532]
[1728000035208,0.3938,2351.4,2351.2,0.42532]
[1728000035209,0.81911,2351.4,2351.2,0.42531]
[1728000035507,0.42531,2351.3,2351.2,0.42531]
[1728000035903,0.8191,2351.4,2351.3,0.42531]
[1728000036208,0.42529,2351.4,2351.3,0.42531]
[1728000036411,3.63309,2351.5,2351.3,0.42531]
[1728000036612,1.45292,2351.7,2351.3,0.42531]
[1728000036613,0.42529,2351.4,2351.3,0.42531]
[1728000037106,1.183,2351.5,2351.2,2.66]
[1728000037607,0.4253,2351.4,2351.3,0.42531]
[1728000039312,0.42531,2351.3,2351.2,3.08532]
[1728000039708,4.3908,2351.5,2351.2,2.66]
[1728000040007,0.4253,2351.4,2351.3,0.42531]
[1728000040214,0.42531,2351.3,2351.2,3.08532]
[1728000040811,0.42531,2351.4,2351.3,0.42531]
[1728000041013,0.42531,2351.3,2351.2,3.08532]
[1728000041209,0.42531,2351.4,2351.3,0.42531]
[1728000041416,0.42531,2351.4,2351.2,2.66]
[1728000041417,4.3908,2351.5,2351.2,2.66]
[1728000041716,0.4253,2351.4,2351.3,0.4253]
[1728000042111,4.3908,2351.5,2351.2,2.66]
[1728000042313,5.45401,2351.5,2351.2,2.66]
[1728000042513,0.4253,2351.4,2351.3,0.4253]
[1728000043820,0.42529,2351.5,2351.4,0.42529]
[1728000044221,0.42529,2351.4,2351.3,0.8541]
[1728000044815,0.42529,2351.5,2351.4,0.42528]
[1728000045015,0.42529,2351.4,2351.3,0.85411]
[1728000047617,0.42529,2351.4,2351.3,0.42531]
[1728000048525,0.42533,2351.2,2351.1,1.26684]
[1728000049726,1.45124,2351.5,2351.1,0.8415]
[1728000049727,0.388,2351.5,2351.1,0.8415]
[1728000049920,0.42532,2351.3,2351.2,0.42531]
[1728000050323,0.84182,2351.3,2351.2,0.42531]
[1728000051519,0.84182,2351.3,2351.2,3.08531]
[1728000054125,0.4253,2351.4,2351.3,0.42529]
[1728000054921,1.06324,2351.4,2351.1,0.8415]
[1728000055218,0.85512,2351.3,2351.2,0.42533]
[1728000058026,3.2078,2351.6,2351.5,0.42528]
[1728000058327,0.42522,2351.9,2351.8,0.42521]
[1728000058532,0.42522,2351.9,2351.8,3.08521]
[1728000059024,5.64059,2352.0,2351.9,0.4252]
[1728000059724,0.4252,2351.9,2351.8,3.08521]
[1728000060521,0.4252,2351.9,2351.8,2.66]
[1728000060730,0.4252,2351.9,2351.8,3.08521]
[1728000061633,3.6197,2352.0,2351.9,0.4252]
[1728000061827,3.2078,2352.0,2351.9,0.4252]
[1728000062138,3.90092781,2352.2,2352.1,0.42517]
[1728000062431,5.01547862,2352.5,2352.4,0.42511]
[1728000062735,5.01547862,2352.5,2352.3,2.66]
[1728000062931,0.42513,2352.4,2352.3,2.66]
[1728000063733,8.62357862,2352.5,2352.2,0.4244]
[1728000063920,0.3981,2352.4,2352.1,2.66]
[1728000064126,0.42515,2352.2,2352.1,2.66]
[1728000064929,0.42515,2352.2,2352.1,3.08517]
[1728000067533,1.46093,2352.4,2352.1,3.08517]
[1728000067735,0.42514,2352.3,2352.2,0.42515]
[1728000068233,0.42514,2352.3,2352.1,2.66]
[1728000068234,0.42514,2352.3,2352.1,3.08516]
[1728000068435,0.82323,2352.4,2352.2,0.42514]
[1728000068731,0.82321,2352.4,2352.3,2.66]
[1728000068931,0.4003,2352.5,2352.3,2.66]
[1728000069235,0.42503,2352.9,2352.8,0.42503]
[1728000069435,0.42502,2353.0,2352.8,0.42503]
[1728000069639,0.42501,2353.0,2352.9,2.66]
[1728000070831,5.10438,2353.1,2352.8,2.66]
[1728000070832,0.42502,2352.9,2352.8,2.66]
[1728000071234,5.10438,2353.1,2352.5,2.66]
[1728000071235,4.0419,2353.1,2352.5,2.66]
[1728000071432,3.2078,2352.8,2352.5,2.66]
[1728000071639,0.82936,2352.7,2352.6,0.42508]
[1728000071832,0.4043,2352.7,2352.6,0.42508]
[1728000072240,0.4043,2352.7,2352.5,2.66]
[1728000072435,0.4043,2352.7,2352.4,0.8307]
[1728000072636,0.42515,2352.2,2352.0,2.66]
[1728000072830,3.2078,2352.2,2351.9,0.4016]
[1728000073036,3.2078,2352.2,2351.6,6.39205]
[1728000073037,0.42524,2351.7,2351.6,6.39205]
[1728000073237,0.42524,2351.8,2351.7,0.42523]
[1728000073637,0.42524,2351.7,2351.6,3.08524]
[1728000073837,1.06302,2351.9,2351.7,0.42524]
[1728000073838,0.42524,2351.8,2351.7,0.42524]
[1728000074839,3.2078,2351.9,2351.6,2.66]
[1728000075046,0.42523,2351.8,2351.7,0.42523]
[1728000075345,0.42522,2351.8,2351.7,0.42524]
[1728000076149,3.2078,2351.9,2351.6,2.66]
[1728000076541,0.42523,2351.8,2351.6,2.66]
[1728000076839,0.42523,2351.8,2351.7,0.42524]
[1728000077643,0.42526,2351.6,2351.5,0.83817]
[1728000077844,0.42526,2351.6,2351.5,0.4129]
[1728000078044,0.42526,2351.6,2351.5,0.83818]
[1728000078945,0.42526,2351.6,2351.5,0.4129]
[1728000079450,0.3949,2351.7,2351.4,3.2078]
[1728000079451,0.42528,2351.5,2351.4,3.2078]
[1728000079754,0.42528,2351.5,2351.4,3.63309]
[1728000079945,0.42528,2351.6,2351.5,0.42527]
[1728000080144,0.42528,2351.5,2351.4,3.2078]
[1728000080750,0.42528,2351.5,2351.4,3.63309]
[1728000081144,4.27096,2351.6,2351.2,0.42533]
[1728000081345,0.4151,2351.4,2351.1,5.3458676]
[1728000081544,0.42533,2351.2,2351.1,5.7712076]
[1728000082247,0.42533,2351.2,2351.1,5.3458676]
[1728000082550,3.2078,2351.6,2351.1,1.06336]
[1728000082739,0.42528,2351.5,2351.4,3.08528]
[1728000083149,4.67808,2351.5,2351.4,0.42528]
[1728000083647,3.63306,2351.6,2351.5,0.42528]
[1728000083848,3.2078,2351.6,2351.4,2.66]
[1728000084150,3.2078,2351.6,2351.5,0.83708]
[1728000084151,3.63307,2351.6,2351.5,0.83708]
[1728000085149,0.4113,2351.8,2351.5,0.4118]
[1728000085353,0.4113,2351.8,2351.7,0.42524]
[1728000085656,0.42521,2351.9,2351.8,0.42522]
[1728000086447,4.4858,2352.2,2351.8,2.66]
[1728000086642,4.91096,2352.2,2352.1,0.42517]
[1728000086847,4.4858,2352.2,2351.9,0.4115]
[1728000087046,0.42517,2352.1,2352.0,0.42518]
[1728000088349,0.42518,2352.1,2352.0,0.42518]
[1728000090053,4.91096,2352.2,2352.1,0.42517]
[1728000090257,1.70316,2352.2,2352.1,0.42517]
[1728000090449,5.95436,2352.2,2352.1,0.42517]
[1728000090754,5.95436,2352.2,2352.0,0.42518]
[1728000090755,0.42518,2352.1,2352.0,0.42518]
[1728000091349,1.278,2352.2,2351.9,0.4115]
[1728000091652,0.42519,2352.0,2351.9,0.83669]
[1728000094052,0.42524,2351.8,2351.7,0.42523]
[1728000094248,0.42524,2351.7,2351.6,0.4106]
[1728000094648,0.42524,2351.8,2351.5,0.4282]
[1728000094856,4.0147,2351.9,2351.3,0.83591]
[1728000094857,0.42529,2351.4,2351.3,0.83591]
[1728000096054,0.42529,2351.4,2351.3,0.4106]
[1728000096364,0.42529,2351.4,2351.2,0.42532]
[1728000096365,0.42531,2351.3,2351.2,0.42532]
[1728000096656,0.42531,2351.3,2351.1,0.4145]
[1728000096960,0.42533,2351.2,2351.1,0.4145]
[1728000097752,4.27109,2351.3,2350.9,3.2078]
[1728000097956,0.42537,2351.0,2350.9,3.2078]
[1728000098353,0.42536,2351.1,2350.9,5.8678]
[1728000098552,0.42536,2351.1,2351.0,0.42535]
[1728000098753,0.42535,2351.2,2351.1,0.42534]
[1728000098950,0.42537,2351.0,2350.9,6.29318]
[1728000099460,0.42537,2351.0,2350.9,6.29319]
[1728000099658,0.42537,2351.0,2350.9,5.8678]
[1728000099856,0.42537,2351.0,2350.9,6.29319]
[1728000100461,0.42537,2351.0,2350.9,5.8678]
[1728000101347,0.42537,2351.0,2350.9,6.29319]
[1728000101552,0.42537,2351.0,2350.9,2.66]
[1728000102451,4.27109,2351.3,2350.9,2.66]
[1728000102663,0.42536,2351.1,2351.0,0.42537]
[1728000102856,0.42537,2351.0,2350.9,3.08536]
[1728000103459,0.42535,2351.2,2351.1,0.42534]
[1728000103762,0.42536,2351.1,2351.0,0.42536]
[1728000105654,4.27111,2351.3,2351.1,0.42534]
[1728000105655,0.42534,2351.2,2351.1,0.42534]
[1728000105866,4.27111,2351.3,2350.9,2.66]
[1728000106057,0.42535,2351.1,2351.0,0.42535]
[1728000106459,4.27111,2351.3,2350.9,2.66]
[1728000106659,0.42535,2351.2,2351.1,0.42534]
[1728000106854,0.42535,2351.1,2351.0,0.42535]
[1728000107470,4.27111,2351.3,2350.9,2.66]
[1728000107665,3.2078,2351.3,2350.9,2.66]
[1728000107864,1.223,2351.4,2351.3,0.42531]
[1728000108061,3.2078,2351.6,2351.3,2.66]
[1728000108262,0.42528,2351.5,2351.4,0.42528]
[1728000109867,4.27095,2351.6,2351.2,0.3923]
[1728000110066,0.42532,2351.3,2351.2,0.42532]
[1728000110765,1.46455,2351.4,2351.1,0.84693]
[1728000110766,0.42533,2351.2,2351.1,0.84693]
[1728000111357,0.3972,2351.3,2351.1,0.84693]
[1728000111358,0.82253,2351.3,2351.2,0.42533]
[1728000113172,0.3972,2351.3,2351.2,0.42533]
[1728000113469,0.82251,2351.3,2351.2,0.42533]
[1728000113767,0.42531,2351.3,2351.2,0.42533]
[1728000115565,0.42533,2351.2,2351.1,0.84693]
[1728000120177,0.42533,2351.2,2351.1,0.4216]
[1728000120373,0.42537,2351.0,2350.9,0.81768]
[1728000121286,4.69858,2351.1,2350.7,0.3977]
[1728000121287,3.6352,2351.1,2350.7,0.3977]
[1728000121587,1.06356,2350.7,2350.3,1.2086336]
[1728000121786,3.2078,2350.5,2350.3,0.3994]
[1728000121978,3.2078,2350.5,2350.1,1.5140336]
[1728000121979,0.42551,2350.2,2350.1,1.5140336]
[1728000122184,0.42551,2350.2,2350.1,1.1096336]
[1728000122185,3.63331,2350.2,2350.1,1.1096336]
[1728000122380,7.88851,2350.2,2350.1,1.1096336]
[1728000122577,7.88851,2350.2,2349.7,1.1096336]
[1728000122578,0.42558,2349.8,2349.7,1.1096336]
[1728000122783,0.42558,2349.8,2349.5,1.22943]
[1728000122784,0.42561,2349.7,2349.5,1.22943]
[1728000123081,0.42561,2349.7,2349.5,0.8038]
[1728000123283,6.916,2349.6,2349.2,0.099]
[1728000123480,3.2078,2349.3,2349.0,0.099]
[1728000123788,3.2078,2349.3,2348.7,6.46116488]
[1728000123789,2.66,2349.1,2348.7,1.1096336]
[1728000123978,3.2078,2348.8,2348.6,0.42579]
[1728000124181,3.63357,2348.8,2348.5,0.42581]
[1728000124378,3.2078,2348.8,2348.5,0.42581]
[1728000124776,3.63357,2348.8,2348.4,0.42582]
[1728000125988,3.2078,2348.8,2348.2,3.0644]
[1728000126192,0.8214,2349.2,2348.7,2.66]
[1728000126495,1.272,2349.2,2348.7,2.66]
[1728000126692,1.272,2349.2,2349.0,0.42572]
[1728000127083,1.6977,2349.2,2348.9,0.42573]
[1728000127286,3.2078,2349.4,2348.7,2.66]
[1728000127488,1.69768,2349.3,2349.1,0.42571]
[1728000127788,3.2078,2349.4,2349.1,2.66]
[1728000127991,0.3979,2349.7,2349.3,3.08568]
[1728000127992,4.4798,2349.5,2349.3,3.08568]
[1728000128288,4.4798,2349.5,2349.4,0.42566]
[1728000128690,0.4256,2349.7,2349.4,0.42566]
[1728000128892,3.2078,2349.8,2349.7,0.4256]
[1728000129194,1.7976,2350.2,2349.7,0.4256]
[1728000129195,1.6986,2350.2,2349.7,2.66]
[1728000129395,0.42554,2350.1,2349.9,0.42557]
[1728000129591,1.6986,2350.2,2349.5,3.7671]
[1728000129795,2.12411,2350.2,2350.0,0.42555]
[1728000130993,1.6986,2350.2,2349.6,0.099]
[1728000131194,0.42554,2350.1,2349.9,0.42556]
[1728000131594,1.272,2350.2,2350.1,0.42553]
[1728000132296,0.42554,2350.1,2349.9,0.42556]
[1728000132495,1.272,2350.2,2350.0,0.42553]
[1728000133289,1.272,2350.2,2349.6,3.3068]
[1728000133490,3.2078,2350.3,2349.9,3.27]
[1728000133691,4.923,2350.7,2349.9,3.27]
[1728000133692,3.6099,2350.7,2350.1,3.27]
[1728000133994,3.6099,2350.7,2349.9,3.2078]
[1728000133995,0.42546,2350.5,2350.2,0.8326]
[1728000134187,0.42548,2350.4,2350.2,0.8326]
[1728000134390,3.6099,2350.7,2350.2,0.4071]
[1728000134696,1.06345,2351.0,2350.2,6.8849]
[1728000134697,3.2078,2351.0,2350.2,6.8849]
[1728000135001,0.42544,2350.7,2350.4,0.42547]
[1728000135190,1.06352,2350.8,2350.3,0.42549]
[1728000135388,0.42549,2350.4,2350.1,0.099]
[1728000135593,1.06361,2350.6,2350.1,0.42552]
[1728000135788,0.42548,2350.4,2350.2,0.42551]
[1728000136195,0.42547,2350.5,2349.8,1.47105]
[1728000136389,3.2078,2350.7,2350.6,0.42544]
[1728000136591,3.2078,2350.7,2350.1,3.369]
[1728000136896,0.42545,2350.6,2350.2,0.42551]
[1728000137098,0.42545,2350.6,2350.4,0.42548]
[1728000137298,0.42547,2350.5,2350.3,0.42549]
[1728000137595,3.2078,2350.7,2350.5,0.42545]
[1728000137786,3.2078,2350.7,2350.0,3.2078]
[1728000138392,3.63323,2350.7,2350.1,1.06383]
[1728000138694,3.63323,2350.7,2350.5,0.42545]
[1728000139896,3.63323,2350.7,2350.1,1.06383]
[1728000139897,0.42539,2350.9,2350.7,0.42541]
[1728000140199,1.35,2351.1,2350.9,0.42539]
[1728000140398,1.77535,2351.1,2350.9,0.42539]
[1728000140702,0.42535,2351.1,2350.9,0.42539]
[1728000141597,5.6211,2351.3,2350.5,1.06365]
[1728000141799,0.42535,2351.1,2350.9,0.42538]
[1728000142104,0.4254,2350.8,2350.6,0.52443]
[1728000142295,3.2078,2351.0,2350.4,0.3922]
[1728000142496,0.42539,2350.9,2350.7,0.42542]
[1728000142691,3.2078,2351.0,2350.8,0.42539]
[1728000142896,3.63317,2351.0,2350.8,0.42539]
[1728000144499,1.06347,2350.9,2350.4,0.3922]
[1728000144804,0.42541,2350.8,2350.6,0.42543]
[1728000145301,3.2078,2351.0,2350.9,0.42539]
[1728000145495,8.1795,2351.4,2351.2,0.42533]
[1728000145701,4.05849,2351.4,2351.2,0.42532]
[1728000146705,0.42531,2351.3,2351.1,0.42534]
[1728000146906,3.6332,2351.4,2350.7,3.6774]
[1728000147406,0.42532,2351.3,2351.1,0.42535]
[1728000147993,3.6332,2351.4,2350.7,1.47095]
[1728000148197,3.6332,2351.4,2350.9,4.27126]
[1728000148499,4.0585,2351.4,2351.2,0.42532]
[1728000148699,0.42533,2351.3,2351.1,0.42534]
[1728000149001,3.6332,2351.4,2350.8,1.06352]
[1728000149199,4.0585,2351.4,2351.2,0.42533]
[1728000149602,0.42532,2351.3,2351.1,0.42534]
[1728000150108,0.42532,2351.3,2350.8,1.06352]
[1728000150109,4.05851,2351.4,2351.2,0.42533]
[1728000150303,0.42532,2351.3,2351.1,0.42534]
[1728000150505,3.6332,2351.4,2351.3,0.42531]
[1728000150900,3.2078,2351.4,2351.3,0.42531]
[1728000151100,0.3963,2351.6,2351.1,1.06337]
[1728000151304,3.6091,2351.8,2351.2,0.4053]
[1728000151503,3.6091,2351.8,2351.3,3.27]
[1728000151706,0.42527,2351.6,2351.4,0.42529]
[1728000152105,0.42527,2351.6,2351.4,0.42528]
[1728000152605,1.06311,2351.7,2351.3,0.42531]
[1728000152804,1.06311,2351.7,2351.1,0.4005]
[1728000153004,1.06311,2351.7,2351.4,0.42529]
[1728000153005,0.42527,2351.6,2351.4,0.42529]
[1728000153212,0.4253,2351.4,2351.2,0.42532]
[1728000153604,0.42529,2351.4,2351.2,0.42533]
[1728000153804,0.4253,2351.4,2350.9,1.48886]
[1728000154008,3.2078,2351.5,2351.0,0.42537]
[1728000154207,4.13334,2351.8,2351.6,0.42525]
[1728000154412,4.03434,2351.8,2351.6,0.42525]
[1728000154609,4.03434,2351.8,2351.3,1.06329]
[1728000154610,3.6091,2351.8,2351.3,1.06329]
[1728000154816,3.6091,2351.8,2351.7,0.42524]
[1728000155415,3.6091,2351.8,2351.6,0.42525]
[1728000155914,4.03434,2351.8,2351.6,0.42526]
[1728000156116,4.03433,2351.8,2351.6,0.42526]
[1728000156413,3.6091,2351.8,2351.7,0.42524]
[1728000156809,4.22,2352.4,2351.7,0.42524]
[1728000156810,3.3068,2352.4,2351.9,1.06302]
[1728000157012,3.2078,2352.4,2351.9,3.27]
[1728000157205,2.60205,2352.8,2352.6,0.42507]
[1728000157406,0.827,2352.8,2352.7,0.42506]
[1728000157607,3.632,2352.8,2352.7,0.42506]
[1728000158111,0.4242,2352.8,2352.7,0.42506]
[1728000158622,0.84924,2352.8,2352.6,0.42507]
[1728000158811,0.4242,2352.8,2352.3,1.06283]
[1728000159117,0.4242,2352.8,2352.7,0.42506]
[1728000159515,4.5578,2353.1,2352.7,0.42506]
[1728000159714,0.42502,2353.0,2352.7,0.42506]
[1728000160422,0.42502,2352.9,2352.7,0.42506]
[1728000161417,0.42502,2353.0,2352.4,1.4879]
[1728000161622,0.42502,2353.0,2352.8,0.42504]
[1728000162009,4.5578,2353.1,2352.4,1.16179]
[1728000162212,0.42501,2353.0,2352.8,0.42504]
[1728000162427,0.42501,2353.0,2352.4,1.06279]
[1728000162428,0.42501,2353.0,2352.7,0.42505]
[1728000162618,4.9828,2353.1,2352.8,0.42503]
[1728000162926,0.42503,2352.9,2352.7,0.42506]
[1728000163419,0.42505,2352.8,2352.4,0.099]
[1728000163618,3.2078,2352.8,2352.2,3.2078]
[1728000163821,0.42509,2352.6,2352.4,0.42511]
[1728000164019,0.42508,2352.7,2352.4,0.4251]
[1728000164212,0.42508,2352.7,2352.5,0.42509]
[1728000164415,0.42508,2352.6,2352.4,0.42511]
[1728000164615,0.42509,2352.6,2352.4,0.4251]
[1728000165015,0.42506,2352.7,2352.3,0.42513]
[1728000165223,3.2078,2352.8,2352.4,0.4251]
[1728000165616,0.42507,2352.7,2352.2,3.2078]
[1728000165925,3.63285,2352.8,2352.6,0.42508]
[1728000166927,0.42507,2352.7,2352.2,4.27067]
[1728000167133,0.42507,2352.7,2352.5,0.42509]
[1728000167423,3.63285,2352.8,2352.6,0.42507]
[1728000167724,3.2078,2352.8,2352.2,4.27067]
[1728000167914,3.63285,2352.8,2352.6,0.42507]
[1728000168420,0.42506,2352.7,2352.5,0.42508]
[1728000168626,0.42506,2352.7,2352.6,0.42508]
[1728000168822,0.42506,2352.7,2352.2,4.27067]
[1728000168823,0.42506,2352.7,2352.5,0.42508]
[1728000169018,0.42509,2352.6,2352.4,0.42511]
[1728000169219,3.2078,2352.8,2352.2,3.2078]
[1728000169522,0.42508,2352.7,2352.5,0.42509]
[1728000169719,0.42508,2352.6,2352.5,0.42509]
[1728000170517,0.42508,2352.6,2352.4,0.4251]
[1728000170722,0.42508,2352.6,2352.5,0.4251]
[1728000171829,0.42506,2352.7,2352.6,0.42507]
[1728000172028,0.42506,2352.7,2352.5,0.42508]
[1728000172029,0.42507,2352.7,2352.5,0.42508]
[1728000172233,0.42508,2352.6,2352.5,0.42508]
[1728000173220,5.3131,2352.6,2352.0,0.9068]
[1728000173423,3.2078,2352.5,2352.4,0.42511]
[1728000173624,3.2078,2352.8,2352.0,8.0956]
[1728000173828,3.2078,2352.8,2352.7,0.42506]
[1728000174030,0.3966,2352.9,2352.8,0.42504]
[1728000174230,0.42502,2353.0,2352.9,0.42502]
[1728000174532,0.42505,2352.8,2352.6,0.42507]
[1728000174736,1.06252,2353.0,2352.5,0.42509]
[1728000174737,4.27038,2352.9,2352.5,0.42509]
[1728000174935,0.42506,2352.8,2352.6,0.42507]
[1728000175140,3.2078,2352.9,2352.4,3.2078]
[1728000175433,0.42508,2352.7,2352.6,0.42508]
[1728000176228,0.4251,2352.5,2352.3,0.42512]
[1728000176629,0.42513,2352.3,2352.2,1.26425]
[1728000176831,3.5977,2352.6,2352.0,3.2078]
[1728000177031,0.42515,2352.2,2352.1,0.42516]
[1728000178335,1.06279,2352.4,2351.8,1.06303]
[1728000178527,0.4252,2352.0,2351.6,4.36992]
[1728000178730,1.06289,2352.2,2351.7,3.2078]
[1728000179032,0.42521,2351.9,2351.8,0.42521]
[1728000179433,4.252,2351.9,2351.5,0.8287]
[1728000179737,4.252,2351.9,2351.2,0.099]
[1728000179738,3.2078,2351.7,2351.2,0.099]
[1728000179937,3.2078,2351.7,2351.1,1.46827]
[1728000180126,3.2078,2351.7,2351.4,0.42529]
[1728000180127,0.42528,2351.5,2351.4,0.42529]
[1728000180331,0.42531,2351.4,2351.2,0.42532]
[1728000180534,0.42531,2351.4,2350.9,1.58156]
[1728000180535,3.2078,2351.4,2350.9,0.4191]
[1728000180735,3.6331,2351.4,2350.9,1.48255]
[1728000180937,3.6331,2351.4,2351.3,0.42531]
[1728000181137,3.2078,2351.4,2350.9,0.4191]
[1728000181637,0.42532,2351.3,2351.1,0.42534]
[1728000182035,0.42532,2351.3,2350.9,0.4191]
[1728000182338,3.2078,2351.4,2350.9,0.4191]
[1728000182636,3.2078,2351.4,2351.3,0.42531]
[1728000182835,3.2078,2351.4,2351.0,0.42537]
[1728000182836,0.42531,2351.3,2351.0,0.42537]
[1728000183034,3.63311,2351.4,2351.2,0.42533]
[1728000183236,3.63311,2351.4,2351.3,0.42531]
[1728000183429,3.2078,2351.4,2350.9,0.4191]
[1728000183935,3.2078,2351.4,2351.3,0.42531]
[1728000184438,7.4606,2351.4,2351.3,0.42531]
[1728000184732,0.3956,2351.6,2351.1,1.06337]
[1728000184933,0.3956,2351.6,2351.5,0.42528]
[1728000185529,3.2078,2351.8,2351.7,0.42524]
[1728000185735,1.342,2351.9,2351.8,0.42521]
[1728000185938,3.6172,2352.1,2352.0,0.42519]
[1728000185939,0.4094,2352.1,2352.0,0.42519]
[1728000186237,1.342,2352.2,2352.1,0.42517]
[1728000186633,1.342,2352.2,2352.1,4.67637]
[1728000187037,0.4125,2352.5,2352.2,0.42513]
[1728000187038,0.42512,2352.4,2352.2,0.42513]
[1728000187234,0.8376,2352.5,2352.4,0.42511]
[1728000187538,0.4125,2352.5,2352.4,0.42511]
[1728000187956,3.2078,2352.7,2352.6,0.42508]
[1728000188938,3.63286,2352.7,2352.6,0.42508]
[1728000189437,3.2078,2352.7,2352.6,0.42508]
[1728000193937,0.4251,2352.5,2352.3,0.8534]
[1728000194138,0.42514,2352.3,2352.0,3.2078]
[1728000194349,0.42515,2352.2,2352.1,0.42515]
[1728000194846,0.42515,2352.2,2352.1,0.42517]
[1728000195345,3.2078,2352.4,2352.0,3.2078]
[1728000195540,3.2078,2352.4,2352.3,0.42513]
[1728000195735,4.5788,2352.7,2352.6,0.42508]
[1728000197252,5.00386,2352.7,2352.6,0.42508]
[1728000197641,4.5788,2352.7,2352.6,0.42508]
[1728000197946,3.2078,2352.7,2352.6,0.42508]
[1728000199049,3.2078,2352.7,2352.4,0.3954]
[1728000199250,0.42514,2352.3,2352.2,0.42514]
[1728000200140,0.42513,2352.4,2352.3,0.42512]
[1728000200536,0.42513,2352.4,2352.0,8.41877]
[1728000200537,0.393,2352.6,2352.1,1.06292]
[1728000200741,3.2078,2352.7,2352.6,0.42508]
[1728000202639,7.4582,2352.7,2352.4,0.4251]
[1728000202845,7.4582,2352.7,2352.2,1.06286]
[1728000202846,0.4251,2352.5,2352.2,1.06286]